fUSD/lending_fUSD_20241121
["ID","MTS","AMOUNT","RATE_DAILY","PERIOD"]
[342877415,1732191112290,-3336.09,0.00042465,18]
[342877416,1732191112302,-500.0,0.00042465,18]
[342877417,1732191112311,-1037.23,0.00042465,18]
[342877418,1732191112320,-671.17,0.00042465,18]
[342877419,1732191112329,-1790.53,0.00042465,18]
[342877420,1732191112338,-500.0,0.00042465,18]
[342877421,1732191112347,-500.0,0.00042465,18]
[342877422,1732191112356,-1112.73,0.00042465,18]
[342877423,1732191112365,-500.0,0.00042465,18]
[342877424,1732191112374,-500.0,0.00042465,18]
[342877425,1732191112383,-500.0,0.00042465,18]
[342877426,1732191112394,-602.51,0.00042465,18]
[342877427,1732191112403,-500.0,0.00042465,18]
[342877428,1732191112412,-797.91,0.00042465,18]
[342877429,1732191112421,-500.0,0.00042465,18]
[342877430,1732191112431,-500.0,0.00042465,18]
[342877431,1732191112439,-500.0,0.00042465,18]
[342877432,1732191112448,-1931.79,0.00042465,18]
[342877433,1732191112458,-674.86,0.00042465,18]
[342877434,1732191112468,-1398.71,0.00042465,18]
[342877435,1732191112477,-629.42,0.00042465,18]
[342877436,1732191112486,-510.12,0.00042465,18]
[342877437,1732191112495,-500.0,0.00042465,18]
[342877438,1732191112504,-500.0,0.00042465,18]
[342877439,1732191112513,-1345.63,0.00042465,18]
[342877440,1732191112522,-1023.16,0.00042465,18]
[342877441,1732191112531,-1000.0,0.00042465,18]
[342877442,1732191112540,-5477.54,0.00042465,18]
[342877443,1732191112549,-500.0,0.00042465,18]
[342877444,1732191112558,-500.0,0.00042465,18]
[342877445,1732191112568,-1034.41,0.00042465,18]
[342877446,1732191112577,-646.67,0.00042465,18]
[342877447,1732191112587,-500.0,0.00042465,18]
[342877448,1732191112596,-500.0,0.00042465,18]
[342877449,1732191112605,-500.0,0.00042465,18]
[342877450,1732191112619,-3350.27,0.00042465,18]
[342877451,1732191112628,-500.0,0.00042465,18]
[342877452,1732191112641,-951.56,0.00042465,18]
[342877453,1732191112650,-500.0,0.00042465,18]
[342877454,1732191112660,-791.81,0.00042465,18]
[342877455,1732191112669,-500.0,0.00042465,18]
[342877456,1732191112679,-500.0,0.00042465,18]
[342877457,1732191112688,-624.01,0.00042465,18]
[342877458,1732191112698,-500.0,0.00042465,18]
[342877459,1732191112707,-500.0,0.00042465,18]
[342877460,1732191112717,-2280.61,0.00042465,18]
[342877461,1732191112727,-1385.12,0.00042465,18]
[342877462,1732191112736,-904.44,0.00042465,18]
[342877463,1732191112745,-1939.74,0.00042465,18]
[342877464,1732191112755,-1411.9,0.00042465,18]
[342877465,1732191112765,-500.0,0.00042465,18]
[342877466,1732191112775,-534.21,0.00042465,18]
[342877467,1732191112785,-500.0,0.00042465,18]
[342877468,1732191112795,-54170.23,0.00042465,5]
[342877469,1732191112805,-507.95,0.00042465,18]
[342877470,1732191112815,-500.0,0.00042465,18]
[342877471,1732191112825,-3154.79,0.00042465,18]
[342877472,1732191112834,-2457.28,0.00042465,18]
[342877473,1732191112844,-3395.77,0.00042465,18]
[342877474,1732191112854,-500.0,0.00042465,18]
[342877475,1732191112863,-894.23,0.00042465,18]
[342877476,1732191112872,-500.0,0.00042465,18]
[342877477,1732191112882,-899.9,0.00042465,18]
[342877478,1732191112894,-500.0,0.00042465,18]
[342877479,1732191112904,-1220.62,0.00042465,18]
[342877480,1732191112915,-500.0,0.00042465,18]
[342877481,1732191112924,-500.0,0.00042465,18]
[342877482,1732191112934,-1505.36,0.00042465,18]
[342877483,1732191112944,-218.0806033,0.00042465,18]
[342877484,1732191112953,-500.0,0.00042465,18]
[342877485,1732191112963,-1052.65,0.00042465,18]
[342877486,1732191112972,-500.0,0.00042465,18]
[342877487,1732191112981,-1308.23,0.00042465,18]
[342877488,1732191112991,-14798.35,0.00042465,18]
[342877489,1732191113001,-500.0,0.00042465,18]
[342877490,1732191113010,-585.17,0.00042465,18]
[342877491,1732191113020,-1214.68,0.00042465,18]
[342877492,1732191113029,-500.0,0.00042465,18]
[342877493,1732191113038,-281.44,0.00042465,7]
[342877494,1732191113047,-500.0,0.00042465,18]
[342877495,1732191113057,-500.0,0.00042465,18]
[342877496,1732191113067,-2059.53,0.00042465,18]
[342877497,1732191113076,-500.0,0.00042465,18]
[342877498,1732191113086,-1406.26,0.00042465,18]
[342877499,1732191113095,-500.0,0.00042465,18]
[342877500,1732191113105,-1663.99,0.00042465,18]
[342877501,1732191113114,-1947.29,0.00042465,18]
[342877502,1732191113124,-2134.17,0.00042465,18]
[342877503,1732191113134,-552.13,0.00042465,18]
[342877504,1732191113145,-2092.26,0.00042465,18]
[342877505,1732191113155,-500.0,0.00042465,18]
[342877506,1732191113164,-3350.24,0.00042465,18]
[342877507,1732191113174,-524.8,0.00042465,18]
[342877508,1732191113183,-507.0,0.00042465,18]
[342877509,1732191113193,-500.0,0.00042465,18]
[342877510,1732191113202,-1295.33,0.00042465,18]
[342877511,1732191113212,-525.81,0.00042465,18]
[342877512,1732191113222,-926.88,0.00042465,18]
[342877513,1732191113231,-861.54,0.00042465,18]
[342877514,1732191113241,-500.0,0.00042465,18]
[342877515,1732191113250,-7223.51,0.00042465,18]
[342877516,1732191113259,-1922.86,0.00042465,18]
[342877517,1732191113268,-500.0,0.00042465,18]
[342877518,1732191113278,-2342.03,0.00042465,18]
[342877519,1732191113290,-47253.13,0.00042465,18]
[342877520,1732191113300,-3228.25,0.00042465,18]
[342877521,1732191113309,-393.26330433,0.00042465,18]
[342877522,1732191113318,-500.0,0.00042465,18]
[342877523,1732191113328,-608.79,0.00042465,18]
[342877524,1732191113338,-599.94,0.00042465,18]
[342877525,1732191113347,-1462.98,0.00042465,18]
[342877526,1732191113356,-1423.15,0.00042465,18]
[342877527,1732191113366,-500.0,0.00042465,18]
[342877528,1732191113375,-500.0,0.00042465,18]
[342877529,1732191113384,-500.0,0.00042465,18]
[342877530,1732191113396,-1030.0,0.00042465,18]
[342877531,1732191113406,-5402.58,0.00042465,18]
[342877532,1732191113415,-500.0,0.00042465,18]
[342877533,1732191113423,-688.23,0.00042465,18]
[342877534,1732191113432,-638.6568103,0.00042465,18]
[342877535,1732191113442,-505.96,0.00042465,18]
[342877536,1732191113451,-2642.3,0.00042465,18]
[342877537,1732191113461,-811.93,0.00042465,18]
[342877538,1732191113471,-1585.57,0.00042465,18]
[342877539,1732191113480,-500.0,0.00042465,18]
[342877540,1732191113490,-875.91,0.00042465,18]
[342877541,1732191113499,-553.57,0.00042465,18]
[342877542,1732191113509,-500.0,0.00042465,18]
[342877543,1732191113518,-934.75,0.00042465,18]
[342877544,1732191113528,-500.0,0.00042465,18]
[342877545,1732191113537,-918.0,0.00042465,18]
[342877546,1732191113547,-1261.49,0.00042465,18]
[342877547,1732191113557,-1013.06,0.00042465,18]
[342877548,1732191113566,-1786.58,0.00042465,18]
[342877549,1732191113576,-1103.31,0.00042465,18]
[342877550,1732191113586,-506.12,0.00042465,18]
[342877551,1732191113596,-1326.44,0.00042465,18]
[342877552,1732191113606,-500.0,0.00042465,18]
[342877553,1732191113616,-598.61,0.00042465,18]
[342877554,1732191113627,-2129.07,0.00042465,18]
[342877555,1732191113640,-500.0,0.00042465,18]
[342877556,1732191113650,-500.0,0.00042465,18]
[342877557,1732191113660,-500.0,0.00042465,18]
[342877558,1732191113670,-500.0,0.00042465,18]
[342877559,1732191113680,-3261.05,0.00042465,18]
[342877560,1732191113690,-500.0,0.00042465,18]
[342877561,1732191113700,-5158.19,0.00042465,18]
[342877562,1732191113710,-1136.22,0.00042465,18]
[342877563,1732191113719,-593.86,0.00042465,18]
[342877564,1732191113730,-1493.18,0.00042465,18]
[342877565,1732191113740,-567.35,0.00042465,18]
[342877566,1732191113749,-500.0,0.00042465,18]
[342877567,1732191113759,-500.0,0.00042465,18]
[342877568,1732191113769,-1352.8,0.00042465,18]
[342877569,1732191113780,-500.0,0.00042465,18]
[342877570,1732191113789,-1351.96,0.00042465,18]
[342877571,1732191113799,-1147.31,0.00042465,18]
[342877572,1732191113809,-500.0,0.00042465,18]
[342877573,1732191113819,-291.85453015,0.00042465,18]
[342877574,1732191113830,-500.0,0.00042465,18]
[342877575,1732191113840,-500.0,0.00042465,18]
[342877576,1732191113850,-500.0,0.00042465,18]
[342877577,1732191113860,-773.85,0.00042465,18]
[342877578,1732191113870,-1199.73,0.00042465,18]
[342877579,1732191113879,-2351.77,0.00042465,18]
[342877580,1732191113889,-1793.0,0.00042465,18]
[342877581,1732191113898,-858.69,0.00042465,18]
[342877582,1732191113908,-545.3,0.00042465,18]
[342877583,1732191113918,-579.98430791,0.00042465,18]
[342877584,1732191113928,-500.0,0.00042465,18]
[342877585,1732191113938,-1052.15,0.00042465,18]
[342877586,1732191113947,-798.38,0.00042465,18]
[342877587,1732191113957,-500.0,0.00042465,18]
[342877588,1732191113967,-553.4,0.00042465,18]
[342877589,1732191113977,-500.0,0.00042465,18]
[342877590,1732191113987,-657.68,0.00042465,18]
[342877591,1732191113996,-1089.06,0.00042465,18]
[342877592,1732191114007,-1049.96,0.00042465,18]
[342877593,1732191114016,-2885.1,0.00042465,18]
[342877594,1732191114026,-919.52,0.00042465,18]
[342877595,1732191114036,-681.87,0.00042465,18]
[342877596,1732191114046,-617.73,0.00042465,18]
[342877597,1732191114056,-500.0,0.00042465,18]
[342877598,1732191114066,-2805.64,0.00042465,18]
[342877599,1732191114076,-1232.85,0.00042465,18]
[342877600,1732191114086,-500.0,0.00042465,18]
[342877601,1732191114095,-3409.36,0.00042465,18]
[342877602,1732191114105,-627.86,0.00042465,18]
[342877603,1732191114115,-500.0,0.00042465,18]
[342877604,1732191114124,-1005.04,0.00042465,18]
[342877605,1732191114135,-5899.19146349,0.00042465,18]
[342877606,1732191114950,-500.0,0.00041095,18]
[342877607,1732191114960,-1963.71853651,0.00042465,18]
[342877608,1732191114970,-500.0,0.00042465,18]
[342877609,1732191114979,-542.65,0.00042465,18]
[342877610,1732191114988,-1585.7,0.00042465,18]
[342877611,1732191114996,-425.14855171,0.00042465,18]
[342877612,1732191115008,-74.85144829,0.00042465,18]
[342877613,1732191115017,-1771.73,0.00042465,18]
[342877614,1732191115026,-4029.26108137,0.00042465,18]
[342877615,1732191115037,-241.63891863,0.00042465,18]
[342877616,1732191115046,-384.87228677,0.00042465,18]
[342877617,1732191115057,-115.12771323,0.00042465,18]
[342877618,1732191115066,-414.10094279,0.00042465,18]
[342877619,1732191115078,-832.06905721,0.00042465,18]
[342877620,1732191115087,-153.43829083,0.00042465,18]
[342877621,1732191115098,-1340.18170917,0.00042465,18]
[342877622,1732191115107,-1470.35,0.00042465,18]
[342877623,1732191115117,-884.87,0.00042465,18]
[342877624,1732191115127,-858.23,0.00042465,18]
[342877625,1732191115136,-658.39,0.00042465,18]
[342877626,1732191115147,-2000.0,0.00042465,30]
[342877627,1732191115156,-500.0,0.00042465,18]
[342877628,1732191115165,-500.0,0.00042465,18]
[342877629,1732191115174,-500.0,0.00042465,18]
[342877630,1732191115183,-1081.78,0.00042465,18]
[342877631,1732191115192,-578.25204437,0.00042465,18]
[342877632,1732191115204,-696.06795563,0.00042465,18]
[342877633,1732191115214,-500.0,0.00042465,18]
[342877634,1732191115224,-552.35,0.00042465,18]
[342877635,1732191115233,-500.0,0.00042465,18]
[342877636,1732191115243,-500.0,0.00042465,18]
[342877637,1732191115252,-500.0,0.00042465,18]
[342877638,1732191115261,-500.0,0.00042465,18]
[342877639,1732191115270,-1089.06,0.00042465,18]
[342877640,1732191115280,-500.0,0.00042465,18]
[342877641,1732191115290,-1466.43,0.00042465,18]
[342877642,1732191115303,-500.0,0.00042465,18]
[342877643,1732191115312,-500.0,0.00042465,18]
[342877644,1732191115321,-3365.8,0.00042465,18]
[342877645,1732191115331,-500.0,0.00042465,18]
[342877646,1732191115341,-3585.25,0.00042465,18]
[342877647,1732191115350,-858.17,0.00042465,18]
[342877648,1732191115358,-1748.97,0.00042465,18]
[342877649,1732191115367,-500.0,0.00042465,18]
[342877650,1732191115376,-1564.38,0.00042465,18]
[342877651,1732191115385,-500.0,0.00042465,18]
[342877652,1732191115396,-657.23,0.00042465,18]
[342877653,1732191115405,-1071.71,0.00042465,18]
[342877654,1732191115414,-1890.95,0.00042465,18]
[342877655,1732191115423,-500.0,0.00042465,18]
[342877656,1732191115432,-896.89,0.00042465,18]
[342877657,1732191115441,-1500.0,0.00042465,120]
[342877658,1732191115450,-500.0,0.00042465,18]
[342877659,1732191115459,-425.28982721,0.00042465,18]
[342877660,1732191116173,-150.0,0.000385,2]
[342877661,1732191116184,-1369.2,0.00041085,10]
[342877662,1732191116193,-500.0,0.00041095,18]
[342877663,1732191116202,-1356.3513499,0.00041095,18]
[342877664,1732191116247,-489.325,0.00041095,18]
[342877665,1732191116262,-3575.0536501,0.00041095,18]
[342877666,1732191116272,-509.74,0.00041369,18]
[342877667,1732191116281,-5317.66493799,0.00041369,18]
[342877668,1732191116506,-103.06506201,0.00041369,18]
[342877669,1732191116524,-5420.73,0.00041643,18]
[342877670,1732191116545,-5420.73,0.00041917,18]
[342877671,1732191116563,-303.31,0.00042189,30]
[342877672,1732191116581,-433.47,0.00042189,30]
[342877673,1732191116597,-433.47,0.00042189,30]
[342877674,1732191116615,-433.47,0.00042189,30]
[342877675,1732191116628,-433.47,0.00042189,30]
[342877676,1732191116648,-5420.73,0.00042191,18]
[342877677,1732191116661,-928.18017279,0.00042465,18]
[342877678,1732191116678,-565.65,0.00042465,18]
[342877679,1732191116702,-1702.36,0.00042465,18]
[342877680,1732191116718,-1897.51,0.00042465,18]
[342877681,1732191116733,-1131.28,0.00042465,18]
[342877682,1732191116749,-500.0,0.00042465,18]
[342877683,1732191116764,-515.24942052,0.00042465,18]
[342877684,1732191116779,-3234.69,0.00042465,18]
[342877685,1732191116795,-1141.75,0.00042465,18]
[342877686,1732191116811,-500.0,0.00042465,18]
[342877687,1732191116826,-764.9,0.00042465,18]
[342877688,1732191116842,-500.0,0.00042465,18]
[342877689,1732191116857,-1881.36,0.00042465,18]
[342877690,1732191116872,-500.0,0.00042465,18]
[342877691,1732191116887,-701.88,0.00042465,18]
[342877692,1732191116902,-1786.22,0.00042465,18]
[342877693,1732191116917,-917.21,0.00042465,18]
[342877694,1732191116932,-522.5,0.00042465,18]
[342877695,1732191116947,-5276.31,0.00042465,18]
[342877696,1732191116961,-1083.07,0.00042465,18]
[342877697,1732191116978,-695.5,0.00042465,18]
[342877698,1732191116993,-667.39,0.00042465,18]
[342877699,1732191117008,-947.55,0.00042465,18]
[342877700,1732191117022,-1153.93,0.00042465,18]
[342877701,1732191117037,-387.05197634,0.00042465,18]
[342877702,1732191117051,-1128.35,0.00042465,18]
[342877703,1732191117065,-5493.63,0.00042465,18]
[342877704,1732191117079,-531.95,0.00042465,18]
[342877705,1732191117094,-500.0,0.00042465,18]
[342877706,1732191117109,-1181.43,0.00042465,18]
[342877707,1732191117123,-1117.88,0.00042465,18]
[342877708,1732191117137,-1859.5,0.00042465,18]
[342877709,1732191117151,-1554.92,0.00042465,18]
[342877710,1732191117166,-500.0,0.00042465,18]
[342877711,1732191117180,-772.67,0.00042465,18]
[342877712,1732191117195,-28642.13,0.00042465,18]
[342877713,1732191117209,-1091.78,0.00042465,18]
[342877714,1732191117223,-4438.03,0.00042465,18]
[342877715,1732191117239,-3310.48,0.00042465,18]
[342877716,1732191117253,-1442.82,0.00042465,18]
[342877717,1732191117267,-1211.34,0.00042465,18]
[342877718,1732191117282,-780.76,0.00042465,18]
[342877719,1732191117299,-500.0,0.00042465,18]
[342877720,1732191117313,-500.0,0.00042465,18]
[342877721,1732191117326,-500.0,0.00042465,18]
[342877722,1732191117343,-500.0,0.00042465,18]
[342877723,1732191117357,-500.0,0.00042465,18]
[342877724,1732191117372,-2703.44,0.00042465,18]
[342877725,1732191117386,-1087.66,0.00042465,18]
[342877726,1732191117402,-500.0,0.00042465,18]
[342877727,1732191117416,-677.74,0.00042465,18]
[342877728,1732191117431,-500.0,0.00042465,18]
[342877729,1732191117446,-500.0,0.00042465,18]
[342877730,1732191117461,-1473.9,0.00042465,18]
[342877731,1732191117476,-500.0,0.00042465,18]
[342877732,1732191117490,-1559.25,0.00042465,18]
[342877733,1732191117504,-784.71,0.00042465,18]
[342877734,1732191117519,-500.0,0.00042465,18]
[342877735,1732191117534,-3822.14,0.00042465,18]
[342877736,1732191117547,-863.55,0.00042465,18]
[342877737,1732191117561,-500.0,0.00042465,18]
[342877738,1732191117577,-2128.78,0.00042465,18]
[342877739,1732191117590,-2107.31,0.00042465,18]
[342877740,1732191117606,-500.0,0.00042465,18]
[342877741,1732191117620,-1350.13,0.00042465,18]
[342877742,1732191117635,-1838.09,0.00042465,18]
[342877743,1732191117652,-500.0,0.00042465,18]
[342877744,1732191117668,-500.0,0.00042465,18]
[342877745,1732191117685,-3867.41,0.00042465,18]
[342877746,1732191117702,-2697.41,0.00042465,18]
[342877747,1732191117719,-500.0,0.00042465,18]
[342877748,1732191117734,-3295.78,0.00042465,18]
[342877749,1732191117746,-718.71,0.00042465,18]
[342877750,1732191117755,-2926.81,0.00042465,18]
[342877751,1732191117765,-500.0,0.00042465,18]
[342877752,1732191117775,-500.0,0.00042465,18]
[342877753,1732191117785,-577.22,0.00042465,18]
[342877754,1732191117795,-500.0,0.00042465,18]
[342877755,1732191117806,-1064.06,0.00042465,18]
[342877756,1732191117815,-1197.49,0.00042465,18]
[342877757,1732191117830,-442.84064264,0.00042465,18]
[342877758,1732191117840,-4330.34,0.00042465,18]
[342877759,1732191117850,-1471.96,0.00042465,18]
[342877760,1732191117859,-1009.74,0.00042465,18]
[342877761,1732191117869,-6.64386164,0.00042465,18]
[342877762,1732191128423,157.23,0.00015342,2]
[342877763,1732191147394,150.0,0.00016877,2]
[342877766,1732191354155,10000.0,0.00024,120]
[342877767,1732191428792,10000.0,0.000245,60]
[342877768,1732191640801,-337.30736934,0.00023375,2]
[342877769,1732191640825,-3170.33562543,0.00023375,2]
[342877770,1732191640849,-722.09433585,0.000244,2]
[342877771,1732191640878,-476.70452286,0.000245,2]
[342877772,1732191640902,-157.23,0.000247,2]
[342877773,1732191640926,-500.0,0.00024932,2]
[342877776,1732191816533,500.0,0.00024932,2]
[342877778,1732191868416,151.5,0.00015342,2]
[342877779,1732191868660,151.5,0.00022945,2]
[342877780,1732191920241,1640.482506,9e-05,2]
[342877781,1732191922360,213.762,0.00029487,2]
[342877782,1732191926680,150.0,0.000108,2]
[342877783,1732191926704,150.0,0.000108,2]
[342877784,1732191926739,150.0,0.000108,2]
[342877785,1732191926765,150.0,0.000108,2]
[342877786,1732191926788,150.0,0.000108,2]
[342877787,1732191926814,150.0,0.000108,2]
[342877788,1732191926842,78.105114,0.000108,2]
[342877789,1732191945097,-151.5,0.00030548,2]
[342877790,1732191945123,-172.5,0.00030609,2]
[342877791,1732191945147,-167.13,0.00030812,2]
[342877792,1732191945171,-150.0,0.00033603,2]
[342877793,1732191945196,-157.23,0.00034057,2]
[342877794,1732191945219,-1531.0,0.00036774,2]
[342877795,1732191945243,-317.80301524,0.000374,2]
[342877796,1732191945265,-153.0,0.000375,120]
[342877797,1732191945288,-213.762,0.00037725,2]
[342877798,1732191945309,-249.82,0.00037725,10]
[342877799,1732191945332,-150.41,0.00037761,2]
[342877800,1732191945355,-250.0,0.00037924,120]
[342877801,1732191945378,-260.6,0.00038,120]
[342877802,1732191945400,-230.84,0.00038061,120]
[342877803,1732191945422,-180.13,0.00038107,120]
[342877804,1732191945446,-151.5,0.00038151,2]
[342877805,1732191945468,-200.0,0.00038161,2]
[342877806,1732191945490,-299.54,0.00038172,2]
[342877807,1732191945512,-187.77732054,0.00038202,2]
[342877808,1732191955250,150.0,9.336e-05,2]
[342877809,1732191955399,150.0,9.336e-05,2]
[342877810,1732191955424,150.0,9.336e-05,2]
[342877811,1732191955449,150.0,9.336e-05,2]
[342877812,1732191955472,150.0,9.336e-05,2]
[342877813,1732191956568,142.01,0.00025,2]
[342877814,1732191956594,105.71825918,0.00025,2]
[342877815,1732191961925,427.52425,0.00029487,2]
[342877816,1732192026095,-270.791506,0.00037536,2]
[342877817,1732192026117,-1110.55,0.00037725,2]
[342877818,1732192026139,-427.52425,0.00037725,2]
[342877819,1732192026159,-252.18586773,0.00038011,2]
[342877820,1732192026180,-250.0,0.00038195,2]
[342877821,1732192026201,-958.57267946,0.00038202,2]
[342877822,1732192026222,-273.91,0.00038228,2]
[342877823,1732192026248,-1232.8,0.00038234,120]
[342877824,1732192026272,-1000.0,0.0003824,2]
[342877825,1732192026295,-1000.0,0.00038244,2]
[342877826,1732192026317,-300.0,0.00038249,2]
[342877827,1732192026338,-1320.75,0.00038249,2]
[342877828,1732192026360,-250.0,0.0003829,2]
[342877829,1732192026381,-210.64,0.0003829,2]
[342877830,1732192026403,-150.99,0.0003829,2]
[342877831,1732192026424,-317.80301524,0.00038376,2]
[342877832,1732192026446,-159.51,0.00038421,120]
[342877833,1732192026467,-3395.74280706,0.000385,2]
[342877834,1732192026991,600.0,0.000245,60]
[342877835,1732192033155,-324.2226572,0.000385,2]
[342877836,1732192034894,-428.50453574,0.000385,2]
[342877837,1732192034915,-161.87,0.00038694,2]
[342877838,1732192034936,-496.0,0.00038706,3]
[342877839,1732192034958,-161.87,0.00038713,2]
[342877840,1732192034979,-574.14452975,0.00038727,7]
[342877841,1732192035002,-161.87,0.00038733,2]
[342877842,1732192035024,-161.87,0.00038752,2]
[342877843,1732192035046,-161.87,0.00038771,2]
[342877844,1732192035068,-1172.08953368,0.00038791,30]
[342877845,1732192035097,-3050.93597513,0.00038791,30]
[342877846,1732192045167,247.32802877,0.000101,2]
[342877847,1732192070490,645.0414506,0.0002,4]
[342877848,1732192090914,151.0,0.0003,120]
[342877850,1732192094172,410.78075325,0.00027,2]
[342877854,1732192115447,500.79354702,0.0003,2]
[342877855,1732192119957,1812.7922377,0.00027,120]
[342877856,1732192126114,255.31753095,0.000107,2]
[342877858,1732192148093,-59.0451938,0.00027,120]
[342877859,1732192148113,-91.13595212,0.00027,7]
[342877860,1732192150141,-189.86404788,0.00027,7]
[342877861,1732192150167,-2506.70804756,0.0003,30]
[342877862,1732192150189,-301.999999,0.00031,2]
[342877863,1732192150210,-400.0,0.00031999,2]
[342877864,1732192150230,-1472.05730556,0.00032,90]
[342877903,1732192231423,-167.13,0.00029022,2]
[342877906,1732192231433,-250.0,0.00031,2]
[342877909,1732192231443,-400.0,0.00031999,2]
[342877910,1732192231453,-39779.58719605,0.00032,90]
[342877911,1732192231463,-300.0,0.00033,2]
[342877912,1732192231472,-157.23607037,0.00034317,2]
[342877913,1732192231482,-5122.86894566,0.00034317,2]
[342877914,1732192231492,-560.0,0.00034417,2]
[342877915,1732192231599,-157.23607037,0.00034709,2]
[342877916,1732192231609,-174.0,0.0003499,2]
[342877917,1732192231618,-174.0,0.0003499,2]
[342877918,1732192231627,-838.0,0.00034999,2]
[342877919,1732192231636,-25544.17814623,0.00035,90]
[342877920,1732192231649,-350.0,0.00035,2]
[342877922,1732192231658,-157.23607037,0.00035101,2]
[342877924,1732192231667,-1454.45,0.00035157,2]
[342877925,1732192231679,-1141.0,0.00035191,10]
[342877926,1732192231690,-174.0,0.00035191,2]
[342877927,1732192231699,-174.0,0.00035191,2]
[342877928,1732192231708,-174.0,0.00035191,2]
[342877929,1732192231720,-174.0,0.00035191,2]
[342877930,1732192231730,-174.0,0.00035191,2]
[342877931,1732192231739,-174.0,0.00035191,2]
[342877932,1732192231747,-174.0,0.00035191,2]
[342877933,1732192231757,-174.0,0.00035191,2]
[342877934,1732192231766,-210.0,0.00035201,2]
[342877935,1732192231775,-702.55977927,0.00035201,90]
[342877936,1732192231785,-2274.46007477,0.00035201,2]
[342877937,1732192231794,-163363.6865879,0.00035201,4]
[342877938,1732192231804,-4297.1576668,0.00035201,120]
[342877939,1732192231813,-400.0,0.00037,2]
[342877940,1732192231822,-1454.45,0.00037421,2]
[342877941,1732192231831,-23900.0,0.00038301,2]
[342877942,1732192231841,-359.33342204,0.00038327,15]
[342877943,1732192231850,-250.0,0.00038427,2]
[342877944,1732192231859,-150.0,0.00038719,2]
[342877945,1732192231869,-5974.10449119,0.00038791,30]
[342877946,1732192231878,-161.87,0.00038791,2]
[342877947,1732192231887,-161.87,0.0003881,2]
[342877948,1732192231896,-7246.89,0.00038827,2]
[342877949,1732192231906,-161.87,0.00038829,2]
[342877950,1732192231915,-161.87,0.00038849,2]
[342877951,1732192231928,-161.87,0.00038868,2]
[342877952,1732192231937,-161.87,0.00038887,2]
[342877953,1732192231947,-359.33342197,0.00038958,15]
[342877954,1732192231956,-450.0,0.00039,2]
[342877955,1732192231965,-1859.702,0.00039119,53]
[342877956,1732192231975,-500.52824788,0.00039167,5]
[342877957,1732192231985,-243.4,0.00039493,120]
[342877958,1732192231994,-359.33342197,0.0003959,15]
[342877959,1732192232004,-1000.0,0.00039655,2]
[342877960,1732192232013,-1454.45,0.00039685,2]
[342877961,1732192232023,-231.27,0.00039695,2]
[342877962,1732192232032,-169.53,0.0003971,2]
[342877963,1732192232041,-2000.0,0.00039716,20]
[342877964,1732192232050,-63226.36607237,0.000398,2]
[342877965,1732192232060,-512.6230305,0.0003982,12]
[342877966,1732192232070,-4000.0,0.000399,20]
[342877967,1732192232080,-189450.26408852,0.000399,21]
[342877968,1732192232092,-123000.0,0.000399,21]